bitfinex/quotes_BTCUSD_20250226
["timestamp","ask_amount","ask_price","bid_price","bid_amount"]
[1740578205082,0.171297,87567.0,87564.0,0.00041728]
[1740578205283,0.00085,87569.0,87564.0,0.00241728]
[1740578205737,0.171301,87565.0,87564.0,0.00041728]
[1740578205950,0.00085,87569.0,87564.0,0.00241728]
[1740578206192,0.171301,87565.0,87564.0,0.00241728]
[1740578206393,0.00085,87569.0,87564.0,0.00241728]
[1740578207026,0.00085,87569.0,87566.0,0.0754]
[1740578207163,0.00085,87569.0,87567.0,0.01691994]
[1740578209457,0.00085,87569.0,87568.0,0.05089875]
[1740578209588,0.172143,87569.0,87568.0,0.0493]
[1740578209980,0.171301,87565.0,87564.0,0.00041728]
[1740578210632,0.500601,87565.0,87564.0,0.00041728]
[1740578211793,0.500601,87565.0,87564.0,0.00141728]
[1740578212247,0.500601,87565.0,87564.0,0.00041728]
[1740578212613,0.503601,87565.0,87564.0,0.00041728]
[1740578213162,0.174301,87565.0,87564.0,0.00041728]
[1740578214012,0.171301,87565.0,87564.0,0.00041728]
[1740578214852,0.171301,87565.0,87564.0,0.00141728]
[1740578215386,0.171301,87565.0,87564.0,0.00041728]
[1740578215864,0.174301,87565.0,87564.0,0.00041728]
[1740578216032,0.503601,87565.0,87564.0,0.00041728]
[1740578217111,0.500601,87565.0,87564.0,0.00041728]
[1740578217454,0.504601,87565.0,87564.0,0.00041728]
[1740578217613,0.504601,87565.0,87564.0,0.00084218]
[1740578218058,0.5014508,87565.0,87564.0,0.00084218]
[1740578218220,0.5074508,87565.0,87564.0,0.00084218]
[1740578218414,0.60833425,87565.0,87564.0,0.00084218]
[1740578218799,0.60233425,87565.0,87564.0,0.00084218]
[1740578219119,0.62624332,87565.0,87564.0,0.00084218]
[1740578220370,0.29094332,87565.0,87564.0,0.00084218]
[1740578220563,0.27303425,87565.0,87564.0,0.00084218]
[1740578220841,0.60733425,87565.0,87564.0,1.8e-07]
[1740578221322,0.60268941,87565.0,87564.0,1.8e-07]
[1740578221519,0.5064508,87565.0,87564.0,1.8e-07]
[1740578222242,0.5014508,87565.0,87564.0,1.8e-07]
[1740578223039,0.1721508,87565.0,87564.0,0.0077002]
[1740578223612,0.1781508,87565.0,87564.0,0.0077002]
[1740578224070,0.1721508,87565.0,87564.0,1.8e-07]
[1740578224606,0.1741508,87565.0,87564.0,1.8e-07]
[1740578224995,0.19206217,87565.0,87564.0,1.8e-07]
[1740578225771,0.02076117,87565.0,87564.0,1.8e-07]
[1740578225971,0.19206217,87565.0,87564.0,1.8e-07]
[1740578226343,0.1741508,87565.0,87564.0,1.8e-07]
[1740578226473,0.1721508,87565.0,87564.0,1.8e-07]
[1740578226694,0.19006106,87565.0,87564.0,1.8e-07]
[1740578227312,0.51936106,87565.0,87564.0,1.8e-07]
[1740578227986,0.52236106,87565.0,87564.0,1.8e-07]
[1740578228422,0.51936106,87565.0,87564.0,1.8e-07]
[1740578229037,0.52136106,87565.0,87564.0,1.8e-07]
[1740578229552,0.51936106,87565.0,87564.0,1.8e-07]
[1740578229762,0.52036106,87565.0,87564.0,1.8e-07]
[1740578230648,0.5024508,87565.0,87564.0,1.8e-07]
[1740578231711,0.5014508,87565.0,87564.0,1.8e-07]
[1740578232252,0.5024508,87565.0,87564.0,1.8e-07]
[1740578232662,0.5014508,87565.0,87564.0,1.8e-07]
[1740578232919,0.3301498,87565.0,87564.0,1.8e-07]
[1740578233219,0.0018498,87565.0,87564.0,1.8e-07]
[1740578233616,0.0008498,87565.0,87564.0,1.8e-07]
[1740578234123,0.19006078,87565.0,87564.0,1.8e-07]
[1740578234346,0.01875978,87565.0,87564.0,1.8e-07]
[1740578234723,0.01875978,87565.0,87564.0,0.07870018]
[1740578234921,0.01875978,87565.0,87564.0,0.07970018]
[1740578235338,0.19006078,87565.0,87564.0,0.07970018]
[1740578236615,0.01875978,87565.0,87564.0,0.07970018]
[1740578236818,0.01875978,87565.0,87564.0,0.12870018]
[1740578237468,0.19006078,87565.0,87564.0,0.12870018]
[1740578237668,0.19006078,87565.0,87564.0,0.1415702]
[1740578238027,0.19006078,87565.0,87564.0,0.12870018]
[1740578241236,0.1721508,87565.0,87564.0,0.12770018]
[1740578241823,0.1731508,87565.0,87564.0,0.12770018]
[1740578242024,0.1721508,87565.0,87564.0,0.12770018]
[1740578242371,0.1721508,87565.0,87564.0,0.12870018]
[1740578242562,0.1721508,87565.0,87564.0,0.1415702]
[1740578242768,0.0008498,87565.0,87564.0,0.1415702]
[1740578243186,0.1721508,87565.0,87564.0,0.1415702]
[1740578243819,0.0008498,87565.0,87564.0,0.1415702]
[1740578244543,0.01875946,87565.0,87564.0,0.1415702]
[1740578245761,0.01875946,87565.0,87564.0,0.1405702]
[1740578246131,0.01875946,87565.0,87564.0,0.1415702]
[1740578247544,0.228316,87598.0,87564.0,0.1415702]
[1740578247741,0.27317992,87582.0,87565.0,0.01415702]
[1740578247986,0.27317992,87582.0,87565.0,0.10553912]
[1740578247987,0.10191092,87582.0,87565.0,0.10553912]
[1740578248387,0.17127,87581.0,87565.0,0.10553912]
[1740578248886,0.11981878,87582.0,87565.0,0.10553912]
[1740578249114,0.11981878,87582.0,87567.0,0.0816]
[1740578249115,0.12281878,87582.0,87567.0,0.0816]
[1740578249334,0.12281878,87582.0,87569.0,0.0816]
[1740578249718,0.12281878,87582.0,87570.0,0.01454085]
[1740578250289,0.171276,87578.0,87570.0,0.01454085]
[1740578250488,0.171272,87580.0,87570.0,0.01454085]
[1740578250694,0.171272,87580.0,87571.0,0.02713041]
[1740578251402,0.29108778,87582.0,87571.0,0.02713041]
[1740578251614,0.01790786,87582.0,87571.0,0.02713041]
[1740578251838,0.17127,87581.0,87571.0,0.02713041]
[1740578252034,0.17127,87581.0,87572.0,0.02751104]
[1740578252462,0.17327,87581.0,87572.0,0.02751104]
[1740578252883,0.0008478,87668.0,87572.0,0.02751104]
[1740578252884,0.02,87624.0,87572.0,0.02751104]
[1740578253210,0.0008478,87580.0,87572.0,0.03051104]
[1740578253769,0.0008478,87580.0,87572.0,0.02751104]
[1740578253965,0.0008478,87580.0,87573.0,0.01699519]
[1740578254789,0.1721208,87580.0,87573.0,0.01699519]
[1740578255366,0.171274,87579.0,87573.0,0.01699519]
[1740578255607,0.1721198,87580.0,87573.0,0.01699519]
[1740578255776,0.171274,87579.0,87573.0,0.01699519]
[1740578255981,0.1721208,87580.0,87574.0,0.01899471]
[1740578256588,0.171281,87575.0,87574.0,0.01899471]
[1740578257405,0.171281,87575.0,87574.0,0.02199471]
[1740578257622,0.228365,87579.0,87574.0,0.02199471]
[1740578257819,0.0008478,87580.0,87575.0,0.01498947]
[1740578258022,0.171279,87577.0,87575.0,0.01498947]
[1740578258362,0.2292118,87580.0,87575.0,0.01498947]
[1740578258582,0.0008478,87580.0,87575.0,0.01498947]
[1740578259166,0.0008478,87580.0,87575.0,0.01398947]
[1740578259341,0.0008478,87580.0,87576.0,0.00985895]
[1740578259977,0.171277,87577.0,87576.0,0.00985895]
[1740578260714,0.171277,87577.0,87576.0,0.01285895]
[1740578261416,0.18918494,87577.0,87576.0,0.003]
[1740578261641,0.17170892,87577.0,87576.0,0.003]
[1740578261846,0.17170892,87577.0,87544.0,0.0004248]
[1740578261847,0.171301,87565.0,87544.0,0.0004248]
[1740578262527,0.500601,87565.0,87544.0,0.0004248]
[1740578262739,0.57614216,87565.0,87544.0,0.0004248]
[1740578263104,0.59614216,87565.0,87544.0,0.0004248]
[1740578263307,0.59614216,87565.0,87544.0,9.8e-07]
[1740578263308,0.02,87561.0,87544.0,9.8e-07]
[1740578263505,0.17134,87545.0,87544.0,9.8e-07]
[1740578264294,0.171346,87542.0,87541.0,3.3e-07]
[1740578264510,0.500646,87542.0,87541.0,3.3e-07]
[1740578265138,0.544446,87542.0,87541.0,3.3e-07]
[1740578265359,0.171391,87519.0,87493.0,0.0004246]
[1740578265691,0.17184589,87519.0,87518.0,1.702655]
[1740578265891,0.17204855,87519.0,87518.0,1.702655]
[1740578266325,0.171391,87519.0,87518.0,1.702655]
[1740578266520,0.50114855,87519.0,87518.0,1.697655]
[1740578266720,5.86352385,87519.0,87518.0,1.697655]
[1740578267344,5.8980647,87519.0,87518.0,1.697655]
[1740578267749,5.86352385,87519.0,87518.0,1.697655]
[1740578268055,1.43946419,87519.0,87518.0,1.697655]
[1740578268274,1.24886419,87519.0,87518.0,1.697655]
[1740578268424,1.24906685,87519.0,87518.0,1.697655]
[1740578268632,0.50156685,87519.0,87518.0,1.697655]
[1740578268831,5.70229485,87519.0,87518.0,1.342847]
[1740578269063,5.70229485,87519.0,87493.0,0.0004246]
[1740578269064,0.171403,87513.0,87512.0,6e-07]
[1740578269759,0.18443269,87513.0,87512.0,6e-07]
[1740578269954,0.17187269,87513.0,87512.0,6e-07]
[1740578270160,0.18443269,87513.0,87512.0,6e-07]
[1740578270355,0.17187269,87513.0,87512.0,6e-07]
[1740578270539,0.22475646,87513.0,87512.0,6e-07]
[1740578270739,0.04,87508.0,87493.0,0.0004246]
[1740578270924,9.77254685,87508.0,87493.0,0.0004246]
[1740578271130,0.02,87501.0,87493.0,0.0004246]
[1740578271334,7.61085485,87501.0,87500.0,0.01307031]
[1740578271531,9.75346185,87501.0,87500.0,0.01286654]
[1740578271757,3.374686,87501.0,87500.0,0.01286654]
[1740578272027,3.235178,87501.0,87500.0,0.01286654]
[1740578272206,3.59871885,87501.0,87500.0,0.01286654]
[1740578272423,3.61871885,87501.0,87500.0,0.01286654]
[1740578272826,0.04,87494.0,87493.0,0.0004246]
[1740578273030,9.77254685,87494.0,87493.0,0.0004246]
[1740578273235,9.77346185,87494.0,87493.0,0.0004246]
[1740578273438,0.04,87477.0,87424.0,0.0004238]
[1740578273636,0.04,87466.0,87465.0,0.0277182]
[1740578273924,7.792345,87466.0,87465.0,0.0277182]
[1740578274138,7.792345,87466.0,87424.0,0.0004238]
[1740578274139,0.154389,87441.0,87424.0,0.0004238]
[1740578274339,0.154405,87432.0,87430.0,8e-07]
[1740578274549,5.66116761,87431.0,87430.0,8e-07]
[1740578274769,0.01213403,87431.0,87430.0,8e-07]
[1740578274974,0.01181461,87431.0,87430.0,8e-07]
[1740578276263,0.03264761,87431.0,87430.0,8e-07]
[1740578277012,0.03264761,87431.0,87430.0,0.0787008]
[1740578277444,0.01181461,87431.0,87430.0,0.0787008]
[1740578278164,0.01181461,87431.0,87430.0,0.09324165]
[1740578278368,0.01181461,87431.0,87430.0,0.0787008]
[1740578278533,0.01184731,87431.0,87430.0,0.1264008]
[1740578278732,0.16625431,87431.0,87430.0,0.1264008]
[1740578279152,0.16625431,87431.0,87430.0,8e-07]
[1740578281199,0.49555431,87431.0,87430.0,8e-07]
[1740578281915,0.01184731,87431.0,87430.0,8e-07]
[1740578282116,0.01184731,87431.0,87430.0,0.1209008]
[1740578282318,0.01184731,87431.0,87430.0,0.13303326]
[1740578283121,0.01184731,87431.0,87430.0,0.1209008]
[1740578285517,0.01184731,87431.0,87430.0,0.13544165]
[1740578286147,0.00041779,87441.0,87430.0,0.13544165]
[1740578286148,0.00041779,87441.0,87431.0,0.01454085]
[1740578286354,0.00041779,87441.0,87440.0,0.44288294]
[1740578286621,0.205784,87471.0,87441.0,0.01454085]
[1740578286798,0.154359,87459.0,87441.0,0.01454085]
[1740578287000,0.3,87487.0,87441.0,0.01454085]
[1740578287173,0.3293,87488.0,87441.0,0.01454085]
[1740578287392,0.154354,87462.0,87452.0,0.0805]
[1740578287573,0.154354,87461.0,87460.0,0.09149079]
[1740578288720,0.154366,87454.0,87453.0,0.01719908]
[1740578288924,0.3,87482.0,87453.0,0.01719908]
[1740578289124,0.154367,87454.0,87452.0,0.0805]
[1740578289334,0.205804,87462.0,87452.0,0.0805]
[1740578289534,0.154354,87461.0,87460.0,0.09149079]
[1740578289784,0.3293,87481.0,87460.0,0.09149079]
[1740578289982,0.154352,87463.0,87461.0,0.0469]
[1740578290185,0.205747,87486.0,87462.0,0.01383908]
[1740578290186,0.3,87474.0,87462.0,0.01383908]
[1740578290322,0.3293,87487.0,87462.0,0.01383908]
[1740578290525,0.154338,87470.0,87469.0,0.09149079]
[1740578290925,0.154338,87470.0,87463.0,0.0767]
[1740578290926,0.154349,87464.0,87463.0,0.0767]
[1740578291898,0.154349,87464.0,87463.0,0.07682504]
[1740578292190,0.182901,87479.0,87463.0,0.07682504]
[1740578292442,0.137199,87464.0,87463.0,0.07682504]
[1740578292975,0.182913,87474.0,87463.0,0.07682504]
[1740578293192,0.137197,87465.0,87464.0,0.10386329]
[1740578294392,0.182927,87467.0,87464.0,0.10386329]
[1740578294592,0.137195,87467.0,87464.0,0.10386329]
[1740578294809,0.3293,87506.0,87465.0,0.01454085]
[1740578295030,0.137183,87474.0,87473.0,0.09149079]
[1740578295271,0.3293,87509.0,87473.0,0.09149079]
[1740578295470,0.137178,87478.0,87473.0,0.09149079]
[1740578295649,0.182899,87480.0,87473.0,0.09149079]
[1740578295854,0.137182,87475.0,87474.0,0.00914908]
[1740578296310,0.137194,87467.0,87466.0,0.02421292]
[1740578296475,0.182846,87505.0,87466.0,0.02421292]
[1740578296685,0.137187,87472.0,87466.0,0.02421292]
[1740578296861,0.51215,87503.0,87466.0,0.02421292]
[1740578297060,0.137193,87468.0,87467.0,0.02518012]
[1740578297302,0.137193,87468.0,87467.0,0.09149079]
[1740578297511,0.137193,87468.0,87464.0,0.00674341]
[1740578297512,0.137197,87465.0,87464.0,0.00674341]
[1740578297904,0.137193,87468.0,87464.0,0.00674341]
[1740578298084,0.182927,87467.0,87465.0,0.01304685]
[1740578298283,0.137196,87466.0,87465.0,0.01304685]
[1740578299987,0.137194,87468.0,87465.0,0.01304685]
[1740578300216,0.137196,87466.0,87465.0,0.01304685]
[1740578301046,0.182928,87467.0,87442.0,0.62809079]
[1740578301183,0.137199,87464.0,87442.0,0.62809079]
[1740578301824,0.137199,87464.0,87463.0,0.00012504]
[1740578305865,0.3293,87485.0,87463.0,0.00012504]
[1740578306064,0.3293,87497.0,87466.0,0.1242]
[1740578306273,0.3293,87496.0,87467.0,0.02158158]
[1740578306602,0.182867,87495.0,87467.0,0.02158158]
[1740578307015,0.137193,87468.0,87467.0,0.02158158]
[1740578307355,0.437193,87468.0,87467.0,0.02158158]
[1740578307962,0.137194,87467.0,87466.0,0.10992797]
[1740578308286,0.137194,87467.0,87466.0,0.12093327]
[1740578308498,0.137211,87456.0,87455.0,4e-08]
[1740578308662,0.137211,87456.0,87404.0,0.32517]
[1740578308663,0.13729,87406.0,87405.0,4e-05]
[1740578310325,0.13741518,87406.0,87405.0,4e-05]
[1740578310903,0.13741518,87406.0,87361.0,0.0519594]
[1740578310904,0.183055,87405.0,87361.0,0.0519594]
[1740578311080,0.183143,87364.0,87350.0,0.034414]
[1740578311281,0.137361,87361.0,87360.0,0.55]
[1740578311780,0.183143,87363.0,87360.0,0.5]
[1740578312078,0.137361,87361.0,87360.0,0.5]
[1740578312579,0.13748606,87361.0,87360.0,0.52530481]
[1740578313427,0.13748606,87361.0,87360.0,0.5]
[1740578315560,0.46678606,87361.0,87360.0,0.5]
[1740578315764,0.46927254,87361.0,87360.0,0.5]
[1740578316177,0.46927254,87361.0,87360.0,0.182795]
[1740578316385,0.137381,87348.0,87333.0,0.052449]
[1740578317029,0.04215617,87348.0,87284.0,0.3251]
[1740578317252,0.137499,87273.0,87252.0,0.12420948]
[1740578317697,0.00248648,87273.0,87255.0,0.04955]
[1740578317899,0.137498,87274.0,87255.0,0.04955]
[1740578318105,0.183324,87278.0,87255.0,0.04955]
[1740578318317,0.02,87320.0,87255.0,0.04955]
[1740578318514,0.526143,87319.0,87261.0,0.00165442]
[1740578318717,0.605166,87318.0,87263.0,0.02]
[1740578318928,0.00012499,87333.0,87273.0,0.079]
[1740578319147,0.01743254,87312.0,87282.0,0.04]
[1740578319349,0.01743254,87312.0,87275.0,0.0451]
[1740578319350,0.01743254,87312.0,87288.0,0.02]
[1740578319556,0.20068354,87312.0,87290.0,0.01454085]
[1740578319768,0.01743254,87312.0,87300.0,0.0825]
[1740578319974,0.01743254,87312.0,87301.0,0.0161442]
[1740578320400,0.00012499,87333.0,87312.0,0.01454085]
[1740578320599,0.00012499,87333.0,87332.0,0.36620605]
[1740578322341,0.10317799,87333.0,87332.0,0.36620605]
[1740578322553,0.10317799,87333.0,87331.0,0.0498]
[1740578323402,0.3,87332.0,87331.0,0.0498]
[1740578323615,0.103064,87324.0,87323.0,0.36620605]
[1740578324018,0.103064,87324.0,87323.0,0.37909679]
[1740578324505,0.403064,87324.0,87323.0,0.36620605]
[1740578324933,0.103077,87313.0,87312.0,0.0479]
[1740578325694,0.3,87329.0,87312.0,0.0479]
[1740578325896,0.103067,87321.0,87320.0,0.09161337]
[1740578326102,0.3,87329.0,87320.0,0.10077471]
[1740578326304,0.103067,87321.0,87320.0,0.09161337]
[1740578327048,0.103077,87313.0,87312.0,0.0479]
[1740578327257,0.00165894,87337.0,87293.0,0.0472]
[1740578327466,0.103099,87294.0,87293.0,0.0472]
[1740578327928,0.13742,87323.0,87293.0,0.0472]
[1740578327929,0.034451,87343.0,87293.0,0.0472]
[1740578328271,0.137392,87341.0,87310.0,0.36648915]
[1740578328481,0.103079,87312.0,87310.0,0.36648915]
[1740578328610,0.103079,87312.0,87311.0,0.03664891]
[1740578328830,0.10320395,87312.0,87311.0,0.03664891]
[1740578329228,0.10309,87302.0,87301.0,0.36648915]
[1740578329455,0.00012495,87312.0,87301.0,0.36648915]
[1740578329656,0.00012495,87312.0,87311.0,0.36648915]
[1740578329831,0.10320295,87312.0,87311.0,0.36648915]
[1740578330017,0.00012495,87312.0,87311.0,0.36648915]
[1740578330216,0.00012495,87312.0,87311.0,0.40313806]
[1740578331885,0.10320295,87312.0,87311.0,0.40313806]
[1740578332401,0.00012495,87312.0,87311.0,0.40317806]
[1740578332612,0.10320295,87312.0,87311.0,0.40317806]
[1740578333024,0.10320295,87312.0,87311.0,0.03668891]
[1740578333162,0.10320295,87312.0,87311.0,4e-05]
[1740578335805,0.00012495,87312.0,87311.0,4e-05]
[1740578336302,0.10320295,87312.0,87311.0,0.000465]
[1740578337128,0.00012495,87312.0,87311.0,0.000465]
[1740578337553,0.10320295,87312.0,87311.0,0.000465]
[1740578338581,0.10320295,87312.0,87303.0,0.00160338]
[1740578338582,0.103082,87309.0,87303.0,0.00160338]
[1740578338700,0.00012495,87312.0,87305.0,0.1249]
[1740578338912,0.00012495,87312.0,87311.0,0.09162596]
[1740578340283,0.00012495,87312.0,87311.0,0.10616681]
[1740578340449,0.137387,87345.0,87314.0,0.02]
[1740578340790,0.3293,87363.0,87312.0,0.01454085]
[1740578340791,0.103044,87341.0,87322.0,0.25686681]
[1740578340934,0.103045,87340.0,87322.0,0.25686681]
[1740578341134,0.137371,87355.0,87322.0,0.27826342]
[1740578341332,0.137355,87365.0,87322.0,0.60336342]
[1740578341537,0.103031,87352.0,87330.0,0.02]
[1740578341773,0.137353,87366.0,87351.0,0.09162596]
[1740578341976,0.10303,87353.0,87352.0,0.0091626]
[1740578342184,0.103042,87343.0,87342.0,0.09162596]
[1740578342828,0.137382,87348.0,87342.0,0.09162596]
[1740578342998,0.103038,87346.0,87342.0,0.09162596]
[1740578343184,0.0001256,87348.0,87342.0,0.09162596]
[1740578343383,0.137383,87347.0,87343.0,0.0091626]
[1740578343585,0.103039,87345.0,87343.0,0.0091626]
[1740578343831,0.0001256,87348.0,87343.0,0.0091626]
[1740578344034,0.0001256,87348.0,87346.0,0.01454085]
[1740578344205,0.103027,87356.0,87347.0,0.00160257]
[1740578344404,0.103024,87358.0,87357.0,0.09162596]
[1740578344607,0.137332,87379.0,87357.0,0.09162596]
[1740578344845,0.103013,87367.0,87366.0,0.09162596]
[1740578345045,0.103013,87367.0,87366.0,0.10078856]
[1740578345403,0.103011,87370.0,87366.0,0.10078856]
[1740578345603,0.137329,87382.0,87366.0,0.10078856]
[1740578345804,0.103012,87369.0,87366.0,0.10078856]
[1740578346088,0.103012,87368.0,87367.0,0.01007886]
[1740578346437,0.103036,87348.0,87336.0,0.3251]
[1740578346635,0.3,87397.0,87336.0,0.3251]
[1740578346836,0.103027,87355.0,87354.0,0.09162596]
[1740578349184,0.137368,87357.0,87354.0,0.09162596]
[1740578349386,0.0002,90049.0,87355.0,0.0091626]
[1740578349387,0.137352,87367.0,87355.0,0.0091626]
[1740578349622,0.103013,87367.0,87366.0,0.09162596]
[1740578349866,0.137335,87378.0,87366.0,0.09162596]
[1740578350114,0.103013,87367.0,87366.0,0.09162596]
[1740578350312,0.00085,87387.0,87366.0,0.09162596]
[1740578350527,0.103007,87373.0,87366.0,0.09162596]
[1740578350732,0.103013,87367.0,87366.0,0.09162596]
[1740578352000,0.103004,87375.0,87367.0,0.0489]
[1740578352186,0.00085,87387.0,87368.0,0.0140526]
[1740578352388,0.102996,87382.0,87381.0,0.09162596]
[1740578352589,0.00085,87387.0,87381.0,0.09162596]
[1740578353202,0.102999,87379.0,87378.0,0.0775]
[1740578353434,0.102999,87379.0,87378.0,0.08525]
[1740578353634,0.00012555,87379.0,87378.0,0.08525]
[1740578354011,0.10312455,87379.0,87378.0,0.08525]
[1740578354309,0.00012555,87379.0,87378.0,0.08525]
[1740578354534,0.10312455,87379.0,87378.0,0.08525]
[1740578354780,0.09312455,87379.0,87378.0,0.08525]
[1740578355034,0.09312455,87379.0,87378.0,0.00775]
[1740578355306,0.00085,87387.0,87368.0,0.0967526]
[1740578355533,0.103003,87376.0,87375.0,0.09162596]
[1740578355984,0.137321,87386.0,87375.0,0.09162596]
[1740578356221,0.103001,87378.0,87375.0,0.09162596]
[1740578356459,0.103003,87376.0,87375.0,0.09162596]
[1740578356709,0.103003,87376.0,87375.0,0.11050559]
[1740578357353,0.137334,87379.0,87375.0,0.11050559]
[1740578357553,0.103001,87378.0,87375.0,0.11050559]
[1740578357802,0.00085,87387.0,87375.0,0.11050559]
[1740578357987,0.103001,87377.0,87376.0,0.01105056]
[1740578358426,0.00085,87387.0,87376.0,0.01265275]
[1740578358603,0.00085,87387.0,87386.0,0.09162596]
[1740578358989,0.10384,87387.0,87386.0,0.09162596]
[1740578359226,0.00085,87387.0,87386.0,0.09162596]
[1740578359387,0.00085,87387.0,87386.0,0.10078856]
[1740578359963,0.00085,87387.0,87386.0,0.11532941]
[1740578360165,0.00085,87387.0,87386.0,0.24402941]
[1740578360808,0.00085,87387.0,87386.0,0.26402941]
[1740578361007,0.00085,87387.0,87386.0,0.58912941]
[1740578361490,0.102964,87409.0,87391.0,0.02]
[1740578361782,0.085803,87409.0,87408.0,0.09162596]
[1740578361983,0.3,87433.0,87408.0,0.09162596]
[1740578362131,0.085803,87409.0,87408.0,0.09162596]
[1740578362343,0.085801,87412.0,87408.0,0.09162596]
[1740578362677,0.3,87434.0,87409.0,0.0091626]
[1740578362895,0.3,87434.0,87417.0,0.09162596]
[1740578363109,0.0001256,87434.0,87417.0,0.09162596]
[1740578363250,0.085794,87418.0,87417.0,0.09162596]
[1740578364172,0.0001256,87434.0,87396.0,0.0831]
[1740578364173,0.3,87432.0,87396.0,0.0831]
[1740578364420,0.085836,87375.0,87374.0,0.0476]
[1740578364660,0.3,87395.0,87374.0,0.0476]
[1740578364872,0.3,87412.0,87375.0,0.09162596]
[1740578365079,0.3293,87413.0,87375.0,0.09162596]
[1740578365282,0.085827,87385.0,87384.0,0.09162596]
[1740578366298,0.085827,87385.0,87384.0,0.09204375]
[1740578366861,0.085827,87385.0,87384.0,7.9e-07]
[1740578368148,0.415127,87385.0,87384.0,7.9e-07]
[1740578371697,0.415127,87385.0,87384.0,4.079e-05]
[1740578373030,0.715127,87385.0,87384.0,4.079e-05]
[1740578373607,1.151231,87385.0,87384.0,4.079e-05]
[1740578374181,0.715127,87385.0,87384.0,4.079e-05]
[1740578374578,0.7159746,87385.0,87384.0,4.079e-05]
[1740578374981,0.4159746,87385.0,87384.0,4.079e-05]
[1740578375559,0.0866746,87385.0,87384.0,4.079e-05]
[1740578376062,0.0866746,87385.0,87384.0,0.00767487]
[1740578376444,0.0008476,87385.0,87384.0,0.00767487]
[1740578377391,0.0695086,87385.0,87384.0,0.00767487]
[1740578377608,0.0008476,87385.0,87384.0,0.00767487]
[1740578378028,0.0695086,87385.0,87384.0,0.00767487]
[1740578378427,0.0008476,87385.0,87384.0,0.00767487]
[1740578379642,0.0695086,87385.0,87384.0,0.00767487]
[1740578380374,0.0008476,87385.0,87384.0,0.00767487]
[1740578380937,0.0695086,87385.0,87384.0,0.00767487]
[1740578381358,0.0695086,87385.0,87384.0,4.079e-05]
[1740578384369,0.5614596,87385.0,87384.0,4.079e-05]
[1740578384509,0.3695086,87385.0,87384.0,4.079e-05]
[1740578387263,0.0695086,87385.0,87384.0,4.079e-05]
[1740578387445,0.0008476,87385.0,87384.0,0.12474079]
[1740578387672,0.0008476,87385.0,87384.0,0.13763867]
[1740578387820,0.0008476,87385.0,87384.0,0.15217952]
[1740578388199,0.091501,87431.0,87393.0,0.02]
[1740578388400,0.16940274,87417.0,87416.0,0.09162596]
[1740578388520,0.16940274,87417.0,87416.0,0.10078856]
[1740578389137,0.068636,87417.0,87416.0,0.0091626]
[1740578389332,0.068643,87408.0,87407.0,0.09162596]
[1740578389981,0.060166,87410.0,87407.0,0.09162596]
[1740578390195,0.091521,87411.0,87407.0,0.09162596]
[1740578390422,0.068643,87408.0,87407.0,0.09162596]
[1740578390612,0.068643,87408.0,87402.0,0.0821]
[1740578390613,0.068653,87395.0,87389.0,0.16862596]
[1740578390856,0.068661,87385.0,87384.0,0.01293788]
[1740578392400,0.00041867,87385.0,87384.0,0.01293788]
[1740578392616,0.06907967,87385.0,87384.0,0.01293788]
[1740578393622,0.00041867,87385.0,87384.0,0.01293788]
[1740578394195,0.06907967,87385.0,87384.0,0.01293788]
[1740578395730,0.00041867,87385.0,87384.0,0.01293788]
[1740578395948,0.06907967,87385.0,87384.0,0.01293788]
[1740578396145,0.00041867,87385.0,87384.0,0.01293788]
[1740578398025,0.06907967,87385.0,87384.0,0.01293788]
[1740578398364,0.00041867,87385.0,87384.0,0.01293788]
[1740578398539,0.06907967,87385.0,87384.0,0.01293788]
[1740578398969,0.00041867,87385.0,87384.0,0.01293788]
[1740578399664,0.00126627,87385.0,87384.0,0.01293788]
[1740578400430,0.00126627,87385.0,87384.0,0.02747873]
[1740578400630,0.06992727,87385.0,87384.0,0.02747873]
[1740578400869,0.00126627,87385.0,87384.0,0.02747873]
[1740578401060,0.06992727,87385.0,87384.0,0.01293788]
[1740578401461,0.00126627,87385.0,87384.0,0.01293788]
[1740578402695,0.06992727,87385.0,87384.0,0.01293788]
[1740578403630,0.06992727,87385.0,87384.0,0.0004638]
[1740578404159,0.06992727,87385.0,87384.0,8e-07]
[1740578407224,0.068668,87376.0,87375.0,6e-07]
[1740578407469,0.697968,87376.0,87375.0,6e-07]
[1740578409153,0.397968,87376.0,87375.0,6e-07]
[1740578411477,0.091552,87382.0,87375.0,6e-07]
[1740578411478,0.00126627,87385.0,87375.0,0.0477006]
[1740578411664,0.00126627,87385.0,87380.0,0.09162596]
[1740578411868,0.068664,87381.0,87380.0,0.09162596]
[1740578412627,0.09155,87383.0,87380.0,0.09162596]
[1740578412985,0.068664,87381.0,87380.0,0.09162596]
[1740578413384,0.00126627,87385.0,87380.0,0.09162596]
[1740578413618,0.00126627,87385.0,87381.0,0.02355066]
[1740578413991,0.06992727,87385.0,87381.0,0.02355066]
[1740578414197,0.00126627,87385.0,87381.0,0.02355066]
[1740578414558,0.068664,87382.0,87381.0,0.02355066]
[1740578414966,0.06992827,87385.0,87381.0,0.02355066]
[1740578415202,0.00126627,87385.0,87382.0,0.01759573]
[1740578415357,0.00126627,87385.0,87384.0,0.03454085]
[1740578415556,0.00126627,87385.0,87384.0,0.15944085]
[1740578416043,0.00126627,87385.0,87384.0,0.13944085]
[1740578416194,0.06992727,87385.0,87384.0,0.1249]
[1740578416373,0.06992727,87385.0,87380.0,0.09162596]
[1740578416374,0.068668,87376.0,87370.0,0.122]
[1740578416575,0.07825484,87379.0,87371.0,0.09162596]
[1740578416778,0.068668,87376.0,87372.0,0.00160218]
[1740578416977,0.068668,87376.0,87371.0,0.09162596]
[1740578419408,0.068668,87376.0,87349.0,0.0803]
[1740578419611,0.068668,87376.0,87342.0,4e-05]
[1740578419612,0.397968,87376.0,87342.0,4e-05]
[1740578420174,0.068694,87343.0,87342.0,4e-05]
[1740578420579,0.3293,87359.0,87319.0,0.02879833]
[1740578420580,0.068712,87320.0,87319.0,0.02879833]
[1740578421474,0.06913015,87320.0,87311.0,0.09166596]
[1740578421672,0.06913015,87320.0,87312.0,0.0091666]
[1740578421673,0.051538,87313.0,87312.0,0.0091666]
[1740578422537,0.00041815,87320.0,87312.0,0.0091666]
[1740578422739,0.0116,87366.0,87314.0,0.01454085]
[1740578422967,0.051535,87318.0,87315.0,0.00160305]
[1740578423296,0.3293,87365.0,87316.0,0.01454085]
[1740578423297,0.3,87364.0,87316.0,0.01454085]
[1740578423499,0.3,87362.0,87320.0,0.09162596]